bitfinex/quotes_ETHUSD_20251031
["timestamp","ask_amount","ask_price","bid_price","bid_amount"]
[1761930352892,0.01,3827.7,3827.6,2.61260319]
[1761930353125,0.01,3827.7,3827.6,3.08380319]
[1761930353644,0.01,3827.7,3827.6,4.18151037]
[1761930353830,0.012,3827.7,3827.6,4.18151037]
[1761930354354,0.012,3827.7,3827.6,3.70311037]
[1761930354507,0.012,3827.7,3827.6,2.61260319]
[1761930354695,0.012,3827.7,3827.6,2.63074435]
[1761930355095,0.012,3827.7,3827.6,3.58034435]
[1761930356109,0.012,3827.7,3827.6,3.56220319]
[1761930357597,0.012,3827.7,3827.6,3.58034435]
[1761930357932,0.012,3827.7,3827.6,4.21269148]
[1761930358145,0.012,3827.7,3827.6,4.19455032]
[1761930358539,0.012,3827.7,3827.6,3.71615032]
[1761930359239,0.012,3827.7,3827.6,4.19455032]
[1761930359533,0.012,3827.7,3827.6,3.71615032]
[1761930359700,0.012,3827.7,3827.6,3.73429148]
[1761930359908,0.012,3827.7,3827.6,4.21269148]
[1761930360103,0.012,3827.7,3827.6,1.10354713]
[1761930360408,1.0513,3827.7,3827.3,2.6127963]
[1761930360611,0.5941,3827.7,3827.5,2.61262354]
[1761930360940,0.1424,3827.7,3827.6,3.10194496]
[1761930361141,0.012,3827.7,3827.6,3.69260319]
[1761930361541,0.012,3827.7,3827.6,0.1304]
[1761930361742,0.012,3827.7,3827.3,0.1304]
[1761930362040,0.012,3827.7,3827.6,3.08380319]
[1761930362240,0.012,3827.7,3827.6,3.10194435]
[1761930362441,0.012,3827.7,3827.6,0.48934116]
[1761930362612,0.012,3827.7,3827.6,3.58034435]
[1761930363414,0.012,3827.7,3827.6,3.10194435]
[1761930363715,0.012,3827.7,3827.6,2.63074435]
[1761930363911,0.012,3827.7,3827.6,2.61260319]
[1761930364111,0.012,3827.7,3826.7,2.61321033]
[1761930364112,0.4637,3827.7,3826.7,2.61321033]
[1761930364329,0.4637,3827.7,3825.6,0.4784]
[1761930364330,0.2282,3826.8,3825.6,0.4784]
[1761930364785,3.302274,3826.0,3825.5,0.001]
[1761930364963,0.4517,3826.0,3825.5,0.001]
[1761930365161,0.4572,3826.6,3825.5,0.001]
[1761930365463,0.1873,3827.0,3826.7,2.61321765]
[1761930365777,0.21996351,3826.9,3826.5,2.61334535]
[1761930365945,0.21996351,3826.9,3826.4,2.61339954]
[1761930366275,2.0168,3826.7,3825.9,0.43246307]
[1761930366573,3.359017,3826.8,3826.0,2.61369576]
[1761930366881,3.359017,3826.8,3825.9,0.43246307]
[1761930366882,2.627451,3826.0,3825.9,0.43246307]
[1761930367252,0.9089,3826.0,3825.9,0.43246307]
[1761930367454,5.618676,3826.5,3825.9,0.43246307]
[1761930367753,5.169592,3826.0,3825.9,0.43246307]
[1761930367951,0.9686592,3826.0,3825.9,0.43246307]
[1761930368166,0.4517,3826.0,3825.9,0.43246307]
[1761930368350,2.792386,3826.0,3825.9,0.43246307]
[1761930368549,0.4517,3826.0,3825.9,0.43246307]
[1761930368751,16.753779,3826.0,3825.9,0.43246307]
[1761930368951,16.060011,3825.9,3825.5,0.001]
[1761930369165,9.456499,3825.6,3825.5,0.001]
[1761930369658,9.913699,3825.6,3825.5,0.001]
[1761930369980,4.448846,3825.6,3825.5,0.001]
[1761930370171,4.906046,3825.6,3825.5,0.001]
[1761930370369,5.39991789,3825.6,3825.5,0.001]
[1761930370852,17.93467589,3825.6,3825.5,0.001]
[1761930371175,15.75424189,3825.6,3825.5,0.001]
[1761930371562,16.16431785,3825.6,3825.5,0.001]
[1761930371763,18.56161585,3825.6,3825.5,0.001]
[1761930371977,17.14191785,3825.6,3825.5,0.001]
[1761930372179,4.84723085,3825.6,3825.5,0.001]
[1761930372392,0.41007596,3825.6,3825.5,0.001]
[1761930372592,5.24890296,3825.6,3825.5,0.001]
[1761930372889,14.73384096,3825.6,3825.5,0.001]
[1761930373290,11.71790896,3825.6,3825.5,0.001]
[1761930373664,10.42446696,3825.6,3825.5,0.001]
[1761930373867,13.59023666,3825.6,3825.5,0.001]
[1761930374071,12.03567266,3825.6,3825.5,0.001]
[1761930374690,14.64964171,3825.6,3825.5,0.001]
[1761930374865,14.64964171,3825.6,3825.1,0.011]
[1761930374866,32.61419188,3825.3,3825.1,0.011]
[1761930375075,0.4203,3824.2,3822.6,2.61598316]
[1761930375293,12.994424,3823.2,3821.9,0.1854]
[1761930375493,11.50197,3823.2,3822.2,2.61626998]
[1761930375721,11.50197,3823.2,3821.6,0.1854]
[1761930375722,11.95917,3823.2,3821.6,0.1854]
[1761930375896,19.70237097,3823.2,3821.6,0.1854]
[1761930376401,19.70237097,3823.2,3821.1,0.01]
[1761930376402,19.70237097,3823.2,3821.1,0.1954]
[1761930376898,27.69178797,3823.2,3821.2,0.01822709]
[1761930377098,26.96847497,3823.2,3821.1,0.1954]
[1761930377266,26.96847497,3823.2,3821.7,2.61661003]
[1761930377470,26.96847497,3823.2,3821.1,0.1954]
[1761930377664,26.96847497,3823.2,3821.4,2.61681486]
[1761930377894,23.07420097,3823.2,3821.8,2.61651192]
[1761930378098,26.63666897,3823.2,3821.2,2.61696097]
[1761930378299,26.63666897,3823.2,3821.8,2.6165494]
[1761930378503,26.63666897,3823.2,3822.0,2.61638159]
[1761930378799,23.97605397,3823.2,3822.0,2.61638159]
[1761930378980,24.69798297,3823.2,3821.3,0.4622]
[1761930379181,24.69798297,3823.2,3821.1,2.81242618]
[1761930379366,14.64226497,3823.2,3821.8,2.61656511]
[1761930379579,14.64226497,3823.2,3822.0,2.61637392]
[1761930380097,31.64829297,3823.2,3821.9,2.61649097]
[1761930380300,31.64829297,3823.2,3821.4,0.01822613]
[1761930380624,26.34990397,3823.2,3822.0,2.61641642]
[1761930380823,26.34990397,3823.2,3821.7,2.61657879]
[1761930381125,26.34848497,3823.2,3821.3,0.4612]
[1761930381284,12.44330797,3823.2,3822.1,0.1256]
[1761930381484,2.12916,3823.2,3822.1,0.1256]
[1761930381705,9.67186212,3823.2,3822.5,2.61603856]
[1761930381980,13.495639,3823.2,3822.4,2.61609479]
[1761930382315,13.933339,3823.2,3822.1,0.01]
[1761930382476,13.933339,3823.2,3822.1,2.62635462]
[1761930383176,26.663357,3823.2,3822.1,2.62635462]
[1761930383381,28.66302667,3823.2,3822.1,2.62635462]
[1761930383581,22.93599967,3823.2,3822.2,2.61628367]
[1761930383816,7.180491,3823.2,3822.1,0.592]
[1761930384000,5.723787,3823.5,3822.7,2.61593877]
[1761930384203,5.723787,3823.5,3822.4,0.4612]
[1761930384204,5.723787,3823.5,3822.8,2.61587223]
[1761930384403,5.723787,3823.5,3822.9,2.61580098]
[1761930384608,2.013086,3823.5,3822.4,0.4612]
[1761930384803,2.013086,3823.5,3822.9,2.61580752]
[1761930385118,0.03269341,3823.4,3823.1,0.1902]
[1761930385295,10.919807,3823.7,3823.1,0.01]
[1761930385492,2.133936,3823.5,3823.1,0.1902]
[1761930385733,0.4582,3824.2,3823.1,2.80581562]
[1761930385894,0.41027175,3823.6,3823.5,2.61540473]
[1761930386095,6.461059,3824.1,3823.5,2.61540473]
[1761930386295,6.461059,3824.1,3823.1,0.97810156]
[1761930386296,0.41024059,3823.7,3823.1,0.97810156]
[1761930386597,0.1304,3823.3,3823.1,0.6514]
[1761930386802,0.1304,3823.3,3823.2,2.61560996]
[1761930387021,0.1304,3823.3,3823.2,0.4553]
[1761930387221,0.1304,3823.3,3823.1,0.6514]
[1761930387222,9.058357,3823.2,3823.1,0.01]
[1761930387422,10.0112827,3823.2,3823.1,0.01]
[1761930387626,10.6593417,3823.2,3823.1,0.011]
[1761930387957,17.620155,3823.6,3823.1,0.011]
[1761930388160,14.980767,3823.4,3823.1,0.011]
[1761930388458,9.850216,3823.2,3823.1,0.011]
[1761930388660,5.788303,3823.3,3823.1,0.011]
[1761930388843,21.412978,3823.6,3823.1,0.011]
[1761930389045,12.8574,3823.4,3823.1,0.011]
[1761930389346,4.495097,3823.2,3823.1,0.011]
[1761930389526,17.82336,3823.5,3823.1,0.011]
[1761930389724,0.41024059,3823.7,3823.1,0.011]
[1761930389725,12.2155,3823.3,3823.1,0.011]
[1761930389918,6.10801912,3823.2,3823.1,0.011]
[1761930390110,19.343049,3823.6,3823.1,0.011]
[1761930390311,6.099171,3823.4,3823.1,0.011]
[1761930390645,3.619293,3823.6,3823.1,0.1912]
[1761930390848,0.41024059,3823.7,3823.1,0.1912]
[1761930390849,0.03269255,3823.5,3823.1,0.011]
[1761930391055,2.868207,3823.4,3823.1,0.011]
[1761930391218,10.065105,3823.2,3823.1,0.011]
[1761930391420,8.752529,3823.6,3823.1,0.011]
[1761930391649,14.164125,3823.4,3823.1,0.011]
[1761930391816,9.401479,3823.2,3823.1,0.011]
[1761930392326,9.859679,3823.2,3823.1,0.011]
[1761930392714,14.011037,3823.2,3823.1,0.011]
[1761930392915,15.4121407,3823.2,3823.1,0.011]
[1761930393717,16.7916757,3823.2,3823.1,0.011]
[1761930394550,6.8710797,3823.2,3823.1,0.011]
[1761930394753,8.284144,3823.6,3823.1,0.1912]
[1761930394952,8.284144,3823.6,3823.1,0.011]
[1761930394953,13.64517155,3823.4,3823.1,0.011]
[1761930395153,15.592463,3823.2,3823.1,0.011]
[1761930395352,5.648535,3823.3,3823.1,0.011]
[1761930395653,0.60589816,3823.3,3823.1,0.011]
[1761930395852,0.03269512,3823.2,3823.1,0.6524]
[1761930396021,4.527179,3823.6,3823.3,2.61549741]
[1761930396222,4.527179,3823.6,3823.2,0.4553]
[1761930396753,0.4709,3823.3,3823.1,0.011]
[1761930396951,9.38549412,3823.2,3823.1,0.011]
[1761930397125,0.49701104,3823.6,3823.1,0.011]
[1761930397327,0.41032058,3823.2,3823.1,0.6465]
[1761930397720,0.41032058,3823.2,3823.1,1.1077]
[1761930397932,0.41032058,3823.2,3823.1,3.72337837]
[1761930398157,0.41032058,3823.2,3823.1,1.1077]
[1761930398449,0.41032058,3823.2,3823.1,3.08197837]
[1761930398658,0.41032058,3823.2,3823.1,0.6465]
[1761930399357,14.97673558,3823.2,3823.1,0.011]
[1761930399524,13.85240658,3823.2,3823.1,0.011]
[1761930399720,10.38394624,3823.2,3823.1,0.011]
[1761930400032,10.84214624,3823.2,3823.1,0.011]
[1761930400228,2.72466124,3823.2,3823.1,0.011]
[1761930400564,2.72466124,3823.2,3822.3,0.001]
[1761930400565,0.6565,3822.8,3822.3,0.001]
[1761930400718,0.6565,3822.8,3821.1,0.01]
[1761930400719,30.0,3822.1,3821.1,0.01]
[1761930401055,18.559459,3821.2,3821.1,0.01]
[1761930401256,0.2015,3821.2,3821.1,0.01]
[1761930401443,7.84976723,3821.2,3821.1,0.01]
[1761930401653,9.692162,3821.5,3821.1,0.01]
[1761930401965,4.799399,3821.3,3821.1,0.01]
[1761930402161,11.98078123,3821.2,3821.1,0.01]
[1761930402464,16.187359,3821.5,3821.1,0.01]
[1761930402661,6.609822,3821.3,3821.1,0.01]
[1761930402835,5.37372923,3821.2,3821.1,0.01]
[1761930403025,8.491051,3821.5,3821.1,0.01]
[1761930403223,11.507076,3821.9,3821.1,0.1902]
[1761930403427,17.142991,3821.7,3821.1,0.1902]
[1761930403649,11.221887,3821.7,3821.1,0.1902]
[1761930403849,18.056627,3822.6,3821.1,3.26844691]
[1761930404028,15.606782,3822.4,3821.2,0.4794487]
[1761930404235,11.09634,3822.6,3821.2,0.4794487]
[1761930404450,0.03270111,3822.5,3821.2,0.4794487]
[1761930404648,2.605716,3822.4,3821.3,0.32867639]
[1761930404852,0.4582,3822.4,3821.1,0.1902]
[1761930405170,17.419388,3822.5,3821.1,0.6514]
[1761930405345,12.200721,3822.3,3821.1,3.26842845]
[1761930405544,10.658293,3822.3,3821.1,3.26842845]
[1761930406042,12.875868,3822.1,3821.1,0.6514]
[1761930406366,11.255934,3821.9,3821.1,0.1912]
[1761930406574,7.029662,3821.7,3821.1,0.1912]
[1761930406745,21.068941,3822.6,3821.3,2.61690507]
[1761930406929,0.03270111,3822.5,3821.2,0.4612]
[1761930407131,6.716904,3822.3,3821.3,2.61689692]
[1761930407463,8.068865,3822.3,3821.6,2.61665243]
[1761930407629,8.068865,3822.3,3821.2,0.4612]
[1761930407630,0.41044598,3822.1,3821.5,2.61675533]
[1761930407963,0.41044598,3822.1,3821.6,2.61665411]
[1761930407964,0.03270538,3822.0,3821.6,2.61665411]
[1761930408137,0.41044598,3822.1,3822.0,3.07173118]
[1761930408337,0.41044598,3822.1,3821.1,0.1912]
[1761930408338,0.41044598,3822.1,3821.5,0.4612]
[1761930408539,0.41044598,3822.1,3821.8,2.6165621]
[1761930408738,0.41044598,3822.1,3822.0,3.07173118]
[1761930409149,4.48056898,3822.1,3822.0,0.4553]
[1761930409324,2.040213,3822.0,3821.5,3.07792356]
[1761930409540,0.41044598,3822.1,3822.0,0.4979]
[1761930409885,3.18909598,3822.1,3821.6,0.4959]
[1761930410180,0.03270538,3822.0,3821.6,0.4959]
[1761930410389,0.41044598,3822.1,3821.6,0.4959]
[1761930410390,0.41044598,3822.1,3822.0,0.4979]
[1761930410742,0.41044598,3822.1,3822.0,0.9938]
[1761930410946,0.41044598,3822.1,3822.0,3.61023118]
[1761930411847,0.41044598,3822.1,3822.0,1.63470532]
[1761930412075,0.1304,3822.0,3821.3,2.74730998]
[1761930412280,0.1304,3821.6,3821.3,0.4959]
[1761930412590,0.1304,3821.3,3821.1,0.1912]
[1761930412754,0.1304,3821.3,3821.2,2.61697895]
[1761930413077,0.1304,3821.3,3821.2,0.9938]
[1761930413586,0.1304,3821.3,3821.2,3.61077895]
[1761930413895,0.54084598,3822.1,3822.0,2.61643118]
[1761930414057,0.54084598,3822.1,3822.0,3.11433118]
[1761930414252,0.54084598,3822.1,3822.0,3.61023118]
[1761930414448,0.54084598,3822.1,3822.0,3.62846804]
[1761930414449,0.41044598,3822.1,3822.0,3.62846804]
[1761930414769,0.41044598,3822.1,3822.0,4.2529663]
[1761930415354,0.41044598,3822.1,3822.0,4.23472944]
[1761930415808,3.135602,3823.6,3822.1,2.61636273]
[1761930415942,2.116335,3823.2,3822.1,0.6761]
[1761930416149,3.369067,3823.2,3822.2,0.67574983]
[1761930416468,5.267917,3823.0,3822.5,2.61603927]
[1761930416668,0.03269769,3822.9,3822.3,0.4959]
[1761930416855,5.75886,3823.0,3822.1,0.1802]
[1761930417078,3.418847,3822.7,3822.1,0.1802]
[1761930417247,0.1889,3822.8,3822.1,0.1802]
[1761930417248,3.094847,3822.5,3822.1,0.1802]
[1761930417446,0.03270196,3822.4,3821.3,0.4959]
[1761930417682,0.1889,3822.8,3822.2,2.6162921]
[1761930417683,3.912218,3822.6,3822.2,2.6162921]
[1761930417846,9.49705697,3823.1,3822.3,0.1611]
[1761930418049,2.252243,3822.9,3822.3,0.1611]
[1761930418261,3.881309,3822.7,3822.3,0.1611]
[1761930418493,8.047819,3822.5,3822.1,0.1994]
[1761930418787,9.227266,3822.8,3822.1,0.1994]
[1761930418983,0.0326994,3822.7,3822.1,0.1994]
[1761930419160,8.448009,3823.2,3822.2,0.51413097]
[1761930419356,2.16212,3823.1,3822.4,2.61612098]
[1761930419659,0.4521,3823.8,3822.4,0.01822631]
[1761930419875,0.03269597,3823.1,3822.4,2.61614031]
[1761930420081,0.03269597,3823.1,3822.2,3.11219241]
[1761930420082,0.03269597,3823.1,3822.6,2.6159564]
[1761930420267,0.03269512,3823.2,3822.3,0.4959]
[1761930420585,0.002,3824.1,3823.2,0.659]
[1761930420746,3.12563084,3823.3,3823.2,0.4979]
[1761930420974,0.41031084,3823.3,3822.8,2.61587185]
[1761930421170,0.41031084,3823.3,3822.6,0.4959]
[1761930421171,0.03269512,3823.2,3822.6,0.4959]
[1761930421376,5.679518,3823.1,3820.5,6.60738938]
[1761930421575,3.394511,3822.9,3821.6,0.4959]
[1761930421900,3.394511,3822.9,3820.7,2.61829283]
[1761930421901,0.03269854,3822.8,3821.9,0.4959]
[1761930422096,0.22159854,3822.8,3821.9,0.4959]
[1761930422296,4.973036,3822.7,3821.9,0.4959]
[1761930422697,4.973036,3822.7,3822.1,2.81574369]
[1761930422901,3.79269,3822.7,3822.1,0.1994]
[1761930423101,12.263859,3823.0,3822.3,2.61621896]
[1761930423302,0.03269769,3822.9,3822.1,0.71352897]
[1761930423480,3.969819,3822.8,3822.3,2.61621335]
[1761930423682,0.0326994,3822.7,3822.1,0.6953]
[1761930424003,9.352381,3823.1,3822.1,0.6953]
[1761930424199,7.458729,3822.9,3822.3,2.61620384]
[1761930424400,7.458729,3822.9,3822.1,0.6953]
[1761930424401,0.41231084,3823.3,3822.4,0.01822816]
[1761930424704,0.41231084,3823.3,3822.1,0.1994]
[1761930424705,0.41231084,3823.3,3823.2,3.25540996]
[1761930425217,0.41231084,3823.3,3823.2,3.75130996]
[1761930425715,4.68042584,3823.3,3823.2,0.6398]
[1761930426018,3.82706084,3823.3,3823.2,0.1419]
[1761930426222,0.41231084,3823.3,3823.2,0.1419]
[1761930426378,0.41231084,3823.3,3823.2,1.1357]
[1761930426581,0.41231084,3823.3,3823.1,2.61561968]
[1761930426815,0.41231084,3823.3,3823.2,2.61560996]
[1761930428223,0.41231084,3823.3,3823.2,4.22028675]
[1761930428631,0.002,3823.3,3823.2,4.35068675]
[1761930428993,0.002,3823.3,3823.2,4.33247042]
[1761930429189,0.002,3823.3,3823.2,4.35068675]
[1761930429418,0.002,3823.3,3823.2,4.33247042]
[1761930429640,0.012,3823.7,3823.6,3.11323633]
[1761930429641,1e-08,3823.7,3823.6,3.11323633]
[1761930429939,0.002,3824.1,3824.0,9.22245214]
[1761930430228,0.4521,3826.6,3824.4,2.61478924]
[1761930430229,0.1304,3825.6,3824.4,2.61478924]
[1761930430427,0.4521,3827.0,3824.4,3.79375161]
[1761930430639,0.1304,3825.9,3824.4,4.42005161]
[1761930430956,0.1304,3825.9,3824.4,4.4018558]
[1761930431093,0.42022201,3825.7,3824.4,4.2714558]
[1761930431289,0.87232201,3825.7,3824.4,1.16076656]
[1761930431633,0.87232201,3825.7,3824.4,3.74848924]
[1761930431634,0.03267461,3825.6,3824.4,3.74848924]
[1761930431828,0.1909,3824.9,3824.1,0.1994]
[1761930432001,0.002,3824.9,3824.4,0.4979]
[1761930432236,0.002,3824.9,3824.4,3.62678505]
[1761930432529,0.002,3824.9,3824.4,3.60858924]
[1761930432704,0.002,3824.9,3824.4,10.85826825]
[1761930433026,0.002,3824.9,3824.4,4.25087887]
[1761930433429,0.002,3824.9,3824.4,10.85826825]
[1761930433629,0.002,3824.9,3824.8,2.61451579]
[1761930433931,0.002,3824.9,3824.8,3.11241579]
[1761930434127,0.002,3824.9,3824.8,4.23061262]
[1761930434633,0.002,3824.9,3824.8,4.24880158]
[1761930434816,0.002,3824.9,3824.8,4.23061262]
[1761930435217,0.002,3824.9,3824.8,4.24880158]
[1761930435920,0.002,3824.9,3824.8,4.23061262]
[1761930437528,0.002,3824.9,3824.8,4.24880158]
[1761930437837,1e-08,3825.7,3825.6,3.18706905]
[1761930438043,0.002,3826.8,3826.7,2.61321765]
[1761930438243,0.002,3826.8,3826.7,10.18996355]
[1761930438445,0.002,3826.8,3826.7,5.1241001]
[1761930438812,0.002,3826.8,3826.7,3.56441765]
[1761930439908,0.002,3826.8,3826.7,0.4914]
[1761930440108,0.002,3826.8,3826.1,2.61362231]
[1761930440439,0.4426,3826.8,3826.4,2.61336819]
[1761930440641,0.002,3826.8,3826.7,2.61321765]
[1761930440843,0.002,3826.8,3826.4,2.61338534]
[1761930441142,0.1324,3826.8,3826.5,0.01815932]
[1761930441307,0.1324,3826.8,3826.7,3.06901765]
[1761930441507,0.002,3826.8,3826.7,3.78762085]
[1761930441839,0.002,3826.8,3826.7,4.28742085]
[1761930442041,0.002,3826.8,3826.7,4.26926433]
[1761930442228,0.002,3827.2,3827.1,2.61294452]
[1761930442543,0.012,3827.7,3827.1,2.61294452]
[1761930442544,1e-08,3827.7,3827.6,3.06840319]
[1761930443612,1e-08,3827.7,3827.6,2.61260319]
[1761930444017,1e-08,3827.7,3827.6,3.06840319]
[1761930444346,1e-08,3827.7,3827.6,3.56820319]
[1761930444754,1e-08,3827.7,3827.6,3.06840319]
[1761930444911,1e-08,3827.7,3827.6,4.15445861]
[1761930445244,1e-08,3827.7,3827.6,4.13631745]
[1761930445408,1e-08,3827.7,3827.6,4.15445861]
[1761930445922,1e-08,3827.7,3827.6,4.13631745]
[1761930446328,1e-08,3827.7,3827.6,3.06840319]
[1761930446647,1e-08,3827.7,3827.6,0.9556]
[1761930446816,1e-08,3827.7,3827.6,2.61260319]
[1761930447422,1e-08,3827.7,3827.6,3.58634435]
[1761930448846,1e-08,3827.7,3827.6,3.56820319]
[1761930449045,1e-08,3827.7,3827.6,4.18629241]
[1761930449266,1e-08,3827.7,3827.6,3.68649241]
[1761930449559,1e-08,3827.7,3827.6,2.61260319]
[1761930449947,1e-08,3827.7,3827.6,3.06840319]
[1761930450147,1e-08,3827.7,3827.6,3.56820319]
[1761930450351,1e-08,3827.7,3827.6,2.61260319]
[1761930450928,1e-08,3827.7,3826.7,1.06984668]
[1761930451151,1e-08,3827.7,3826.2,0.4998]
[1761930451472,1e-08,3827.7,3827.6,2.61260319]
[1761930451662,1e-08,3827.7,3826.5,2.61328774]
[1761930451867,1e-08,3827.7,3826.5,0.4998]
[1761930452027,1e-08,3827.7,3827.6,2.61260319]
[1761930452559,1e-08,3827.7,3827.6,2.74300319]
[1761930453127,0.03264389,3829.2,3829.1,2.61157974]
[1761930453128,9.451436,3829.2,3829.1,2.61157974]
[1761930453322,0.4794,3830.9,3829.4,2.61137515]
[1761930453523,0.01452685,3830.8,3829.6,2.61123877]
[1761930453747,0.01452685,3830.8,3829.6,2.63735115]
[1761930454534,0.4794,3830.9,3829.6,2.63735115]
[1761930454973,0.4794,3830.9,3829.1,0.1814]
[1761930454974,0.4794,3830.1,3828.8,0.1814]
[1761930455272,0.1918,3830.3,3829.6,2.61123877]
[1761930456546,0.002,3830.3,3829.8,2.6111024]
[1761930456749,0.002,3830.3,3830.2,2.61082972]
[1761930457238,0.002,3830.3,3830.2,3.13673801]
[1761930457442,0.002,3830.3,3830.2,3.71150842]
[1761930457774,0.002,3830.3,3830.2,3.68540013]
[1761930458372,0.002,3830.3,3830.2,3.18560013]
[1761930461242,0.002,3830.3,3830.2,3.64140013]
[1761930462085,0.002,3830.3,3830.2,4.16730842]
[1761930462717,0.002,3831.1,3831.0,2.61028452]
[1761930462871,0.002,3831.1,3831.0,3.58815001]
[1761930463072,0.002,3831.1,3831.0,4.21835001]
[1761930463571,0.002,3831.1,3831.0,3.71855001]
[1761930463773,0.4794,3832.5,3831.6,2.60987576]
[1761930463973,0.6098,3832.5,3831.6,2.60987576]
[1761930464280,0.1304,3832.5,3831.6,3.19607576]
[1761930464681,0.938,3831.7,3831.6,2.60987576]
[1761930464879,0.938,3831.7,3830.3,0.4998]
[1761930465090,0.938,3831.7,3831.5,2.60987954]
[1761930465314,0.938,3831.7,3830.5,2.61058349]
[1761930465471,0.938,3831.7,3830.3,0.4998]
[1761930465472,0.938,3831.7,3830.7,2.61048894]
[1761930465674,0.938,3831.7,3831.4,2.60999262]
[1761930466136,0.4621,3831.6,3831.4,2.60999262]
[1761930466602,0.4621,3831.6,3831.2,2.61014721]
[1761930466603,0.4621,3831.6,3831.5,2.60994388]
[1761930466776,0.4621,3831.6,3831.3,2.61002679]
[1761930466978,0.4621,3831.6,3831.0,2.61027429]
[1761930467226,0.4621,3831.6,3831.1,2.61016569]
[1761930467377,0.4621,3831.6,3831.2,2.610132]
[1761930467889,0.4621,3831.6,3831.0,0.02610284]
[1761930468093,0.4621,3831.6,3830.2,2.61082972]
[1761930468094,0.4621,3831.6,3831.5,2.60994388]
[1761930468315,0.012,3831.7,3831.6,2.60987576]
[1761930468477,0.012,3831.7,3831.5,2.60987991]
[1761930468917,0.012,3831.7,3831.6,2.63597451]
[1761930469217,0.012,3831.7,3831.6,0.02609875]
[1761930469417,0.9382,3831.7,3831.6,2.60987576]
[1761930469718,0.5044,3831.7,3831.6,2.60987576]
[1761930469962,0.012,3831.7,3831.6,2.60987576]
[1761930470076,0.5038,3831.7,3831.6,2.60987576]
[1761930470273,0.012,3831.7,3831.6,2.60987576]
[1761930470590,0.012,3831.7,3830.6,0.456]
[1761930470591,0.9382,3831.7,3829.5,0.456]
[1761930470789,0.9382,3831.7,3831.4,2.610012]
[1761930470790,0.0043,3831.5,3831.4,2.610012]
[1761930471098,0.0043,3831.5,3831.1,2.61020383]
[1761930471290,0.461,3831.5,3831.1,2.61016988]
[1761930471779,0.461,3831.5,3831.3,2.61005865]
[1761930471980,0.461,3831.5,3831.2,2.61012898]
[1761930472316,0.461,3831.5,3830.9,2.61034441]
[1761930472519,0.461,3831.5,3830.5,2.61058709]
[1761930472520,0.4648,3831.0,3829.8,6.57636177]
[1761930472811,0.012,3831.7,3830.4,2.6106934]
[1761930472981,0.012,3831.7,3831.4,2.60998586]
[1761930473181,0.012,3831.7,3831.6,2.60987576]
[1761930473414,0.012,3831.7,3831.5,0.02609943]
[1761930473415,0.9378,3831.7,3830.5,3.33029734]
[1761930473617,0.9378,3831.7,3830.6,0.99066591]
[1761930473618,0.0047,3831.6,3830.6,0.99066591]
[1761930473802,0.4614,3831.6,3830.6,0.99066591]
[1761930473976,0.4614,3831.6,3830.5,0.26368017]
[1761930474176,2.42404185,3831.5,3830.9,2.61030579]
[1761930474401,0.01452685,3831.5,3831.0,2.61027226]
[1761930474677,0.01452685,3831.5,3830.7,2.61042213]
[1761930474678,0.1304,3831.2,3830.9,2.61033244]
[1761930475201,0.1304,3831.2,3830.6,0.1304]
[1761930475408,0.5871,3831.2,3830.9,2.61031059]
[1761930475914,0.4691,3831.0,3830.9,2.61031059]
[1761930476414,0.4691,3831.0,3830.7,2.61048894]
[1761930476415,0.4567,3831.6,3830.5,2.61060457]
[1761930476619,0.4691,3831.0,3830.8,2.61036159]
[1761930476806,0.4691,3831.0,3830.2,2.61082972]
[1761930477002,0.6594,3831.0,3830.9,2.61035265]
[1761930477476,1.1161,3831.0,3829.6,6.57736177]
[1761930477583,0.6543,3830.9,3830.0,2.61092586]
[1761930477922,0.6543,3830.9,3829.6,9.1885984]
[1761930477923,0.01452685,3830.8,3830.2,2.61082972]
[1761930478083,0.01452685,3830.8,3829.6,0.001]
[1761930478415,0.01452685,3830.8,3830.1,2.61084834]
[1761930478416,4.8456,3830.7,3830.1,2.61084834]
[1761930478620,4.12972,3830.7,3830.6,0.001]
[1761930478796,5.05434685,3830.7,3830.6,0.001]
[1761930479118,0.9101,3830.7,3830.6,0.001]
[1761930479321,0.9101,3830.7,3830.6,2.61155709]
[1761930479497,0.1976,3830.9,3830.6,2.61155709]
[1761930479498,0.1976,3830.9,3830.8,2.61042079]
[1761930479693,0.1976,3831.4,3830.6,0.02710557]
[1761930479910,0.4924,3830.7,3830.6,0.001]
[1761930480108,3.04304685,3830.7,3830.6,0.001]
[1761930480285,3.45384685,3830.7,3830.6,0.001]
[1761930481720,0.91772685,3830.7,3830.6,0.001]
[1761930482020,13.96541085,3830.7,3830.6,0.001]
[1761930482184,12.64039593,3830.7,3830.6,0.001]
[1761930482380,12.64039593,3830.7,3830.6,0.00010344]
[1761930482993,2.36044893,3830.7,3830.6,0.00010344]
[1761930483193,0.9032,3830.7,3830.6,0.00010344]
[1761930483402,3.235696,3830.7,3830.6,0.00010344]
[1761930483582,0.9032,3830.7,3830.6,0.00010344]
[1761930484198,0.60707846,3830.9,3830.6,0.00010344]
[1761930484405,0.1976,3830.9,3830.7,2.61043678]
[1761930484824,0.1976,3830.9,3830.6,0.00010344]
[1761930484825,0.60704951,3831.4,3830.8,0.0261042]
[1761930485040,0.012,3831.7,3831.4,2.60999842]
[1761930485241,0.012,3831.7,3830.9,2.63642479]
[1761930485444,0.012,3831.7,3830.9,0.02610352]
[1761930485605,0.012,3831.7,3830.7,0.02610488]
[1761930485806,0.012,3831.7,3831.4,2.61000789]
[1761930486011,0.02652685,3831.7,3830.6,0.45610344]
[1761930486211,0.02652685,3831.7,3830.8,0.1304]
[1761930486212,0.1304,3831.4,3830.8,0.1304]
[1761930486426,0.1304,3831.4,3831.2,2.61010349]
[1761930486643,0.1304,3831.4,3831.2,2.61009213]
[1761930486947,0.1304,3831.4,3831.3,2.61008012]